bitfinex/quotes_BTCUSD_20251124
["timestamp","ask_amount","ask_price","bid_price","bid_amount"]
[1763965610179,2.36029,87257.0,87256.0,0.002]
[1763965610640,2.36029,87257.0,87256.0,0.001]
[1763965611277,0.323,87254.0,87240.0,0.01147]
[1763965611487,0.323,87243.0,87240.0,0.01147]
[1763965611716,0.33407,87241.0,87237.0,0.01147]
[1763965611928,0.01107,87241.0,87237.0,0.01147]
[1763965612592,0.01107,87241.0,87231.0,0.01147]
[1763965612794,2.0,87238.0,87231.0,0.01147]
[1763965612962,2.0,87240.0,87231.0,0.01147]
[1763965613164,2.02214,87240.0,87224.0,0.01147]
[1763965613495,2.0,87240.0,87224.0,0.01147]
[1763965614080,2.01515,87233.0,87224.0,0.01147]
[1763965615205,0.323,87237.0,87224.0,0.03522]
[1763965615361,2.01515,87233.0,87224.0,0.01147]
[1763965615580,2.33815,87233.0,87224.0,0.01147]
[1763965616131,2.33915,87233.0,87224.0,0.01147]
[1763965616515,2.36024393,87233.0,87224.0,0.01147]
[1763965616715,2.36124393,87233.0,87224.0,0.01147]
[1763965617674,2.34609393,87233.0,87224.0,0.01147]
[1763965617877,2.34609393,87233.0,87226.0,0.02375]
[1763965618847,2.34609393,87233.0,87224.0,0.01147]
[1763965620172,2.34609393,87233.0,87225.0,0.02375]
[1763965620421,2.34609393,87233.0,87224.0,0.01147]
[1763965620624,2.38338393,87233.0,87220.0,0.0002]
[1763965620927,2.70040808,87233.0,87220.0,0.0002]
[1763965621138,2.55230257,87221.0,87220.0,0.0002]
[1763965621336,2.69025865,87221.0,87220.0,0.0002]
[1763965621509,2.74841103,87221.0,87220.0,0.0002]
[1763965621928,2.74841103,87221.0,87220.0,0.00057664]
[1763965622085,2.84435131,87221.0,87220.0,0.00057664]
[1763965622929,2.74841103,87221.0,87220.0,0.00057664]
[1763965623130,2.7540106,87221.0,87220.0,0.00057664]
[1763965623344,2.52370803,87221.0,87220.0,0.00057664]
[1763965623545,2.48902799,87221.0,87220.0,0.00057664]
[1763965623773,2.49102799,87221.0,87220.0,0.00057664]
[1763965623971,2.6062493,87221.0,87220.0,0.0006261]
[1763965624182,2.52834877,87221.0,87220.0,0.0006261]
[1763965624783,2.52734877,87221.0,87220.0,0.0006261]
[1763965625016,2.52834877,87221.0,87220.0,0.0006261]
[1763965625602,2.52734877,87221.0,87220.0,0.0006261]
[1763965626208,2.64057008,87221.0,87220.0,0.0006261]
[1763965626617,2.64257008,87221.0,87220.0,0.0006261]
[1763965626953,2.64157008,87221.0,87220.0,0.0006261]
[1763965627288,2.64357008,87221.0,87220.0,0.0006261]
[1763965627491,2.90029123,87221.0,87220.0,0.0006261]
[1763965627702,2.90129123,87221.0,87220.0,0.0006261]
[1763965628845,2.90129123,87221.0,87190.0,0.0002]
[1763965628846,2.65404101,87211.0,87190.0,0.0002]
[1763965629050,3.05766387,87211.0,87210.0,0.00059295]
[1763965629252,3.11751499,87211.0,87210.0,0.00059295]
[1763965630259,3.11851499,87211.0,87210.0,0.00059295]
[1763965630658,3.11951499,87211.0,87210.0,0.00059295]
[1763965630822,2.88818613,87211.0,87210.0,0.00059295]
[1763965631025,2.88918613,87211.0,87210.0,0.00059295]
[1763965631267,3.12051499,87211.0,87210.0,0.00059295]
[1763965631500,3.2357363,87211.0,87210.0,0.00059295]
[1763965631654,2.9117363,87211.0,87210.0,0.00059295]
[1763965632370,2.9097363,87211.0,87210.0,0.00059295]
[1763965632557,2.79451499,87211.0,87210.0,0.00059295]
[1763965632764,2.79651499,87211.0,87210.0,0.00059295]
[1763965632978,0.28145765,87201.0,87190.0,0.0002]
[1763965633181,2.13997793,87201.0,87200.0,0.00030781]
[1763965633393,2.18796935,87201.0,87200.0,0.00030781]
[1763965633621,2.49566584,87201.0,87200.0,0.00030781]
[1763965634028,2.44605618,87201.0,87200.0,0.00030781]
[1763965634225,2.41194642,87201.0,87200.0,0.00030781]
[1763965634460,2.43650642,87201.0,87200.0,0.00030781]
[1763965634820,2.36865393,87201.0,87200.0,0.00030781]
[1763965635007,2.36765393,87201.0,87200.0,0.00030781]
[1763965635612,2.36665393,87201.0,87200.0,0.00030781]
[1763965636290,2.36665393,87201.0,87200.0,0.01549781]
[1763965637089,2.36665393,87201.0,87200.0,0.03805781]
[1763965637516,2.36665393,87201.0,87200.0,0.01549781]
[1763965639108,2.36665393,87201.0,87200.0,0.01649781]
[1763965639315,2.04365393,87201.0,87200.0,0.03905781]
[1763965639551,2.04365393,87201.0,87200.0,0.00130781]
[1763965639672,2.04365393,87201.0,87200.0,0.01649781]
[1763965639869,2.36665393,87201.0,87200.0,0.03968573]
[1763965640968,2.34409393,87201.0,87200.0,0.03968573]
[1763965641174,0.02109393,87201.0,87200.0,0.03968573]
[1763965642281,0.02109393,87201.0,87200.0,0.03868573]
[1763965642621,0.02109393,87201.0,87200.0,0.03968573]
[1763965643340,0.02109393,87201.0,87200.0,0.04068573]
[1763965644327,0.02109393,87201.0,87200.0,0.03968573]
[1763965644494,0.02109393,87201.0,87200.0,0.04068573]
[1763965644911,0.02109393,87201.0,87200.0,0.03968573]
[1763965645193,0.02109393,87201.0,87200.0,0.04168573]
[1763965645905,0.02109393,87201.0,87200.0,0.04068573]
[1763965646107,0.02109393,87201.0,87200.0,0.03868573]
[1763965646358,0.02109393,87201.0,87200.0,0.04168573]
[1763965646981,0.02109393,87201.0,87200.0,0.04068573]
[1763965647184,0.02109393,87201.0,87200.0,0.04168573]
[1763965654633,0.02109393,87201.0,87200.0,0.01912573]
[1763965654841,0.02109393,87201.0,87200.0,0.04278573]
[1763965655269,0.02109393,87201.0,87200.0,0.03978573]
[1763965655459,0.02109393,87201.0,87200.0,0.04078573]
[1763965664435,0.323,87217.0,87200.0,0.04078573]
[1763965664620,0.323,87214.0,87210.0,0.01186]
[1763965664826,0.02125065,87213.0,87210.0,0.01186]
[1763965665039,0.02125065,87213.0,87211.0,0.02334]
[1763965665248,0.02125065,87213.0,87212.0,0.01604]
[1763965665647,0.02125065,87213.0,87212.0,0.03938]
[1763965666499,0.323,87225.0,87212.0,0.03938]
[1763965666700,2.0,87221.0,87219.0,0.01]
[1763965667017,2.34426383,87220.0,87219.0,0.01]
[1763965667369,2.34426383,87220.0,87219.0,0.02604]
[1763965667766,2.34426383,87220.0,87219.0,0.04938]
[1763965668313,2.34426383,87220.0,87219.0,0.05038]
[1763965668513,2.34426383,87220.0,87219.0,0.05138]
[1763965668957,2.34426383,87220.0,87219.0,0.05038]
[1763965669382,2.34426383,87220.0,87219.0,0.05138]
[1763965669747,2.34426383,87220.0,87219.0,0.05038]
[1763965670296,2.34426383,87220.0,87219.0,0.04938]
[1763965672318,2.323,87220.0,87219.0,0.04938]
[1763965673745,2.323,87220.0,87219.0,0.02604]
[1763965673990,2.323,87220.0,87219.0,0.04938]
[1763965676234,2.0,87229.0,87219.0,0.04938]
[1763965676468,2.0,87223.0,87220.0,0.0352]
[1763965676694,2.0,87227.0,87220.0,0.0352]
[1763965676875,2.0,87225.0,87221.0,0.02334]
[1763965677088,2.0,87223.0,87221.0,0.02334]
[1763965677284,2.0,87227.0,87221.0,0.02334]
[1763965677447,2.0,87225.0,87221.0,0.02334]
[1763965677654,2.0,87223.0,87221.0,0.02334]
[1763965677870,0.10905125,87228.0,87221.0,0.02334]
[1763965677871,2.0,87227.0,87221.0,0.02334]
[1763965678208,0.10905125,87228.0,87221.0,0.02434]
[1763965678209,0.323,87222.0,87221.0,0.02434]
[1763965678430,2.323,87222.0,87221.0,0.02434]
[1763965678630,2.323,87222.0,87221.0,0.04038]
[1763965679905,2.323,87222.0,87221.0,0.03938]
[1763965680112,2.323,87222.0,87221.0,0.01604]
[1763965680321,2.323,87222.0,87221.0,0.04038]
[1763965680863,0.323,87227.0,87221.0,0.04038]
[1763965681140,2.0,87224.0,87222.0,0.02334]
[1763965681316,2.0,87231.0,87222.0,0.02334]
[1763965681516,0.52203187,87232.0,87222.0,0.02334]
[1763965681698,0.323,87230.0,87222.0,0.02334]
[1763965681900,0.323,87230.0,87229.0,0.0279]
[1763965682298,0.323,87230.0,87229.0,0.05124]
[1763965683122,0.00039213,87230.0,87229.0,0.05124]
[1763965683884,0.00039213,87230.0,87229.0,0.05224]
[1763965684091,0.00039213,87230.0,87229.0,0.05124]
[1763965684540,2.0,87259.0,87230.0,0.05210249]
[1763965684886,0.00173709,87260.0,87259.0,0.02812]
[1763965685225,0.00173709,87260.0,87259.0,0.05274]
[1763965686867,0.00173709,87260.0,87259.0,0.05374]
[1763965687849,0.00173709,87260.0,87259.0,0.05474]
[1763965694654,0.00173709,87260.0,87259.0,0.05374]
[1763965694853,0.01798717,87296.0,87259.0,0.05374]
[1763965694854,0.323,87289.0,87259.0,0.05374]
[1763965694982,0.323,87285.0,87282.0,0.01024]
[1763965695177,2.323,87283.0,87282.0,0.01024]
[1763965695378,2.35804816,87283.0,87282.0,0.01024]
[1763965695616,2.35804816,87283.0,87282.0,0.02634]
[1763965696136,2.33689513,87283.0,87282.0,0.05096]
[1763965696300,2.3580325,87283.0,87282.0,0.05096]
[1763965699093,2.33689513,87283.0,87282.0,0.05096]
[1763965699285,2.35801232,87283.0,87282.0,0.05096]
[1763965700862,2.35873351,87283.0,87282.0,0.05096]
[1763965701045,2.33761632,87283.0,87282.0,0.05096]
[1763965701257,2.3587312,87283.0,87282.0,0.05096]
[1763965701796,2.3587312,87283.0,87282.0,0.05196]
[1763965702491,2.3587312,87283.0,87282.0,0.05296]
[1763965703144,2.3587312,87283.0,87282.0,0.05196]
[1763965703285,0.34483607,87283.0,87282.0,0.05296]
[1763965704114,0.00072119,87283.0,87282.0,0.05296]
[1763965705402,0.02185617,87283.0,87282.0,0.05296]
[1763965705602,0.00072119,87283.0,87282.0,0.05296]
[1763965706500,0.00072119,87283.0,87282.0,0.05196]
[1763965706736,0.00072119,87283.0,87282.0,0.05096]
[1763965706939,0.00072119,87283.0,87282.0,0.05196]
[1763965707117,0.00072119,87283.0,87282.0,0.05296]
[1763965707701,0.0218801,87283.0,87282.0,0.05296]
[1763965709219,0.00072119,87283.0,87282.0,0.05296]
[1763965709410,0.02190457,87283.0,87282.0,0.05296]
[1763965715030,0.86873466,87292.0,87291.0,0.01574]
[1763965715230,9.892e-05,87292.0,87291.0,0.03838]
[1763965716233,9.892e-05,87292.0,87291.0,0.03938]
[1763965719184,0.01807906,87292.0,87291.0,0.03938]
[1763965719858,9.892e-05,87292.0,87291.0,0.03938]
[1763965720719,0.00038106,87292.0,87291.0,0.03938]
[1763965726478,2.0,87308.0,87300.0,0.01053]
[1763965726682,2.0,87309.0,87307.0,0.02683]
[1763965726894,2.0,87309.0,87307.0,0.01136]
[1763965727090,2.52128215,87308.0,87307.0,0.01136]
[1763965727309,2.02178361,87308.0,87307.0,0.01136]
[1763965727518,2.02178361,87308.0,87307.0,0.02683]
[1763965727721,2.02178361,87308.0,87307.0,0.04941]
[1763965728339,2.34478361,87308.0,87307.0,0.04941]
[1763965731534,2.35542953,87308.0,87307.0,0.04941]
[1763965732437,2.34478361,87308.0,87307.0,0.04941]
[1763965733251,2.35543508,87308.0,87307.0,0.04941]
[1763965733458,2.34478361,87308.0,87307.0,0.04941]
[1763965736758,2.34478361,87308.0,87307.0,0.02683]
[1763965736977,2.34478361,87308.0,87307.0,0.04941]
[1763965738997,2.34478361,87308.0,87307.0,0.02683]
[1763965740429,0.323,87305.0,87291.0,0.01136]
[1763965740749,0.323,87297.0,87291.0,0.03394]
[1763965740965,0.323,87293.0,87291.0,0.03394]
[1763965741270,0.02128215,87292.0,87291.0,0.01136]
[1763965741885,0.02128215,87292.0,87291.0,0.04941]
[1763965742231,0.323,87297.0,87291.0,0.04941]
[1763965742447,0.1333054,87294.0,87292.0,0.02258]
[1763965742754,2.0,87299.0,87292.0,0.02258]
[1763965742954,2.0,87297.0,87292.0,0.02258]
[1763965743152,2.0,87295.0,87292.0,0.02258]
[1763965743552,2.0,87299.0,87292.0,0.02258]
[1763965743950,2.0,87299.0,87292.0,0.02358]
[1763965744176,2.0,87299.0,87292.0,0.02258]
[1763965744378,2.0,87299.0,87292.0,0.02358]
[1763965744834,2.0,87299.0,87292.0,0.02258]
[1763965745552,2.0,87299.0,87298.0,0.02706]
[1763965745935,2.0,87299.0,87298.0,0.05128]
[1763965746139,2.323,87299.0,87298.0,0.05128]
[1763965746850,0.323,87299.0,87298.0,0.05128]
[1763965748827,0.31692829,87299.0,87298.0,0.05128]
[1763965750210,0.00025075,87300.0,87298.0,0.05128]
[1763965750420,0.00025075,87300.0,87299.0,0.03988]
[1763965750845,0.00025075,87300.0,87299.0,0.01566]
[1763965751262,0.00025075,87300.0,87299.0,0.03988]
[1763965753577,9.962e-05,87300.0,87299.0,0.03988]
[1763965756922,9.962e-05,87300.0,87298.0,0.0114]
[1763965757122,9.962e-05,87300.0,87299.0,0.01566]
[1763965757323,9.962e-05,87300.0,87299.0,0.03988]
[1763965762355,9.962e-05,87300.0,87298.0,0.0114]
[1763965762356,2.323,87299.0,87298.0,0.0114]
[1763965762772,0.323,87297.0,87291.0,0.01136]
[1763965763074,2.0,87296.0,87291.0,0.01136]
[1763965763588,2.0,87296.0,87292.0,0.02422]
[1763965765871,2.0,87296.0,87291.0,0.01136]
[1763965766168,0.323,87298.0,87292.0,0.02422]
[1763965766521,2.0,87293.0,87292.0,0.02422]
[1763965766876,2.0,87293.0,87292.0,0.03988]
[1763965768660,2.0,87293.0,87292.0,0.04088]
[1763965771736,1.75473845,87293.0,87292.0,0.04088]
[1763965771953,2.0,87293.0,87292.0,0.04088]
[1763965772150,0.323,87296.0,87292.0,0.04088]
[1763965772352,0.323,87296.0,87293.0,0.02422]
[1763965772550,0.323,87296.0,87295.0,0.01566]
[1763965772989,0.323,87296.0,87295.0,0.03988]
[1763965773304,9.962e-05,87300.0,87295.0,0.03988]
[1763965773511,0.323,87298.0,87296.0,0.02422]
[1763965773811,2.323,87297.0,87296.0,0.02422]
[1763965774174,2.323,87297.0,87296.0,0.03962]
[1763965774796,2.323,87297.0,87296.0,0.0516]
[1763965776352,2.323,87297.0,87296.0,0.0526]
[1763965776737,0.323,87297.0,87296.0,0.0526]
[1763965777217,0.323,87297.0,87296.0,0.0536]
[1763965777410,0.35744888,87297.0,87296.0,0.0536]
[1763965778053,0.323,87297.0,87296.0,0.0536]
[1763965778600,9.962e-05,87300.0,87296.0,0.0536]
[1763965778799,9.962e-05,87300.0,87299.0,0.0154]
[1763965779317,9.962e-05,87300.0,87299.0,0.03828]
[1763965781055,9.962e-05,87300.0,87299.0,0.03928]
[1763965785753,9.962e-05,87300.0,87299.0,0.06218976]
[1763965788045,9.962e-05,87300.0,87299.0,0.03928]
[1763965789543,9.962e-05,87300.0,87299.0,0.04028]
[1763965789750,9.962e-05,87300.0,87299.0,0.03928]
[1763965790160,9.962e-05,87300.0,87299.0,0.0164]
[1763965790359,9.962e-05,87300.0,87299.0,0.002]
[1763965791198,9.962e-05,87300.0,87299.0,0.04225]
[1763965792907,0.0004,87310.0,87300.0,0.04025]
[1763965793052,0.52154762,87350.0,87319.0,0.02647]
[1763965793251,0.00079224,87330.0,87329.0,0.02647]
[1763965793725,0.00079224,87330.0,87329.0,0.05141]
[1763965793866,0.00079224,87330.0,87329.0,0.07788]
[1763965794063,0.0017322,87330.0,87329.0,0.07788]
[1763965794702,0.0017322,87330.0,87329.0,0.07888]
[1763965795094,0.0017322,87330.0,87329.0,0.05241]
[1763965795886,0.0017322,87330.0,87329.0,0.02747]
[1763965796087,0.0017322,87330.0,87329.0,0.02647]
[1763965796402,0.0017322,87330.0,87329.0,0.02747]
[1763965796606,0.0017322,87330.0,87329.0,0.02647]
[1763965797194,0.0017322,87330.0,87329.0,0.05141]
[1763965800720,0.01497063,87330.0,87329.0,0.05141]
[1763965800919,0.323,87328.0,87319.0,0.01116]
[1763965801120,0.323,87324.0,87311.0,0.01116]
[1763965801269,0.323,87320.0,87311.0,0.01116]
[1763965801471,0.323,87320.0,87299.0,0.0361]
[1763965801790,0.52114762,87309.0,87304.0,0.0077]
[1763965801997,0.02698,87305.0,87299.0,0.01116]
[1763965802202,0.02698,87305.0,87294.0,0.01116]
[1763965802383,0.323,87303.0,87294.0,0.01116]
[1763965802586,2.0,87302.0,87294.0,0.01116]
[1763965803416,0.323,87302.0,87301.0,0.01531]
[1763965804378,0.323,87302.0,87294.0,0.01116]
[1763965805051,0.323,87302.0,87291.0,0.01116]
[1763965805227,0.323,87298.0,87286.0,0.01116]
[1763965805430,0.59213116,87292.0,87286.0,0.01125892]
[1763965806049,0.01194,87297.0,87286.0,0.01125892]
[1763965806280,0.59213116,87296.0,87286.0,0.01125892]
[1763965807027,0.02772,87287.0,87286.0,9.892e-05]
[1763965807569,2.05064,87287.0,87286.0,9.892e-05]
[1763965808133,2.37364,87287.0,87286.0,9.892e-05]
[1763965809283,2.37464,87287.0,87286.0,9.892e-05]
[1763965809485,2.37564,87287.0,87286.0,9.892e-05]
[1763965810415,2.325,87287.0,87286.0,9.892e-05]
[1763965812213,2.34775,87287.0,87286.0,9.892e-05]
[1763965812649,2.38645,87287.0,87286.0,9.892e-05]
[1763965816832,2.36353,87287.0,87286.0,9.892e-05]
[1763965817326,2.34775,87287.0,87286.0,9.892e-05]
[1763965817537,2.02475,87287.0,87286.0,0.03932892]
[1763965817727,0.002,87287.0,87286.0,0.03932892]
[1763965818503,2.0,87305.0,87286.0,0.03932892]
[1763965818670,0.00025072,87308.0,87306.0,0.02649]
[1763965818871,0.00025072,87308.0,87307.0,0.03923]
[1763965819268,0.00025072,87308.0,87307.0,0.01648]
[1763965819471,0.00025072,87308.0,87307.0,0.03923]
[1763965820195,0.00025072,87308.0,87306.0,0.01001]
[1763965820893,0.323,87314.0,87306.0,0.01001]
[1763965820894,0.17120251,87314.0,87306.0,0.01001]
[1763965821096,2.0,87313.0,87306.0,0.01001]
[1763965821437,2.0,87314.0,87313.0,0.01648]
[1763965821981,2.0,87314.0,87307.0,0.02275]
[1763965822404,2.0,87314.0,87313.0,0.01648]
[1763965822886,2.0,87314.0,87307.0,0.02275]
[1763965823479,0.323,87311.0,87307.0,0.02275]
[1763965823685,2.0,87310.0,87307.0,0.02275]
[1763965824105,2.0,87310.0,87309.0,0.01648]
[1763965824553,2.0,87310.0,87309.0,0.03923]
[1763965824789,2.0,87310.0,87309.0,0.01648]
[1763965825322,2.0,87310.0,87309.0,0.03923]
[1763965827769,8.985e-05,87314.0,87309.0,0.03923]
[1763965827970,8.985e-05,87314.0,87313.0,0.01648]
[1763965828373,8.985e-05,87314.0,87313.0,0.03923]
[1763965830375,8.985e-05,87314.0,87313.0,0.04223]
[1763965832308,8.985e-05,87314.0,87313.0,0.04023]
[1763965832523,8.985e-05,87314.0,87313.0,0.01748]
[1763965832869,8.985e-05,87314.0,87313.0,0.01648]
[1763965833276,8.985e-05,87314.0,87313.0,0.01748]
[1763965833499,8.985e-05,87314.0,87313.0,0.04023]
[1763965833911,8.985e-05,87314.0,87313.0,0.04123]
[1763965835959,8.985e-05,87314.0,87313.0,0.002]
[1763965836683,8.985e-05,87314.0,87313.0,0.0181]
[1763965836813,8.985e-05,87314.0,87313.0,0.04062]
[1763965837156,8.985e-05,87314.0,87313.0,0.03862]
[1763965837328,8.985e-05,87314.0,87313.0,0.0171]
[1763965837542,8.985e-05,87314.0,87313.0,0.0181]
[1763965837710,8.985e-05,87314.0,87313.0,0.001]
[1763965838271,8.985e-05,87314.0,87313.0,0.002]
[1763965838461,8.985e-05,87314.0,87313.0,0.001]
[1763965838770,8.985e-05,87314.0,87313.0,0.0161]
[1763965839746,8.985e-05,87314.0,87313.0,0.0171]
[1763965840530,8.985e-05,87314.0,87313.0,0.04062]
[1763965840774,8.985e-05,87314.0,87313.0,0.0181]
[1763965841082,8.985e-05,87314.0,87306.0,0.01001]
[1763965841379,2.51537985,87314.0,87313.0,0.002]
[1763965841618,2.01537985,87314.0,87313.0,0.001]
[1763965841764,2.01537985,87314.0,87313.0,0.002]
[1763965842130,2.00008985,87314.0,87313.0,0.002]
[1763965842567,2.00008985,87314.0,87313.0,0.001]
[1763965843498,0.323,87311.0,87306.0,0.01101]
[1763965843700,0.323,87311.0,87306.0,0.01001]
[1763965844329,0.323,87311.0,87300.0,0.01001]
[1763965844688,0.323,87312.0,87306.0,0.001]
[1763965844963,0.323,87310.0,87306.0,0.001]
[1763965845178,0.45432125,87307.0,87306.0,0.002]
[1763965845730,0.45432125,87307.0,87306.0,0.001]
[1763965845935,2.49984413,87307.0,87306.0,0.001]
[1763965846230,0.323,87304.0,87280.0,0.03452]
[1763965846450,0.323,87297.0,87280.0,0.01001]
[1763965846631,0.02125288,87296.0,87282.0,0.03567]
[1763965846857,0.03317288,87296.0,87282.0,0.03567]
[1763965847173,0.01192,87296.0,87282.0,0.03567]
[1763965847337,0.02127545,87295.0,87282.0,0.03567]
[1763965847543,0.02127545,87294.0,87282.0,0.03567]
[1763965847740,0.01192,87296.0,87282.0,0.03567]
[1763965847741,0.01192,87296.0,87282.0,0.03767]
[1763965847935,0.02127544,87295.0,87282.0,0.03767]
[1763965848161,3.19112152,87292.0,87282.0,0.002]
[1763965848340,0.323,87288.0,87282.0,0.002]
[1763965848542,0.02127544,87287.0,87282.0,0.002]
[1763965848859,0.02127544,87286.0,87282.0,0.002]
[1763965849063,0.02127544,87285.0,87282.0,0.002]
[1763965849254,0.323,87285.0,87282.0,0.001]
[1763965849638,0.3230898,87285.0,87282.0,0.001]
[1763965849961,0.3230898,87285.0,87272.0,0.03452]
[1763965850120,0.3230898,87285.0,87282.0,0.001]
[1763965850648,8.98e-05,87285.0,87273.0,0.02451]
[1763965852642,8.98e-05,87285.0,87284.0,0.01116]
[1763965853485,8.98e-05,87285.0,87284.0,0.05081]
[1763965854264,2.17784085,87292.0,87291.0,0.01514]
[1763965854995,2.21821085,87292.0,87284.0,0.001]
[1763965855198,0.12097125,87285.0,87284.0,0.001]
[1763965855400,0.12097125,87285.0,87277.0,0.01116]
[1763965855611,2.0,87284.0,87277.0,0.01116]
[1763965856556,2.0,87289.0,87277.0,0.01116]
[1763965856699,0.323,87285.0,87277.0,0.01116]
[1763965856894,2.0,87284.0,87277.0,0.01316]
[1763965857227,2.0,87284.0,87277.0,0.03767]
[1763965857434,2.0,87284.0,87277.0,0.03667]
[1763965857699,0.323,87289.0,87278.0,0.02451]
[1763965857889,0.323,87285.0,87283.0,0.01514]
[1763965858086,2.323,87284.0,87283.0,0.01514]
[1763965858232,0.323,87284.0,87283.0,0.01514]
[1763965858457,0.08732363,87284.0,87283.0,0.01514]
[1763965858641,2.0,87288.0,87283.0,0.01514]
[1763965859061,2.0,87288.0,87283.0,0.01614]
[1763965859261,2.0,87288.0,87283.0,0.01514]
[1763965859487,0.24523952,87284.0,87277.0,0.001]
[1763965859683,2.0,87277.0,87268.0,0.00173619]
[1763965859949,0.02802,87278.0,87268.0,0.00173619]
[1763965859950,2.0,87271.0,87268.0,0.00183511]
[1763965860384,0.02427,87277.0,87268.0,0.00183511]
[1763965860385,2.0,87276.0,87268.0,0.00183511]
[1763965860582,0.43205125,87275.0,87268.0,0.00183511]
[1763965860743,0.323,87271.0,87268.0,0.00183511]
[1763965860949,0.02454,87269.0,87268.0,0.00183511]
[1763965861187,0.34754,87269.0,87268.0,0.00183511]
[1763965861449,2.37181,87269.0,87268.0,0.00183511]
[1763965862282,2.3930136,87269.0,87268.0,0.00183511]
[1763965862978,2.32142575,87269.0,87268.0,0.00183511]
[1763965863594,2.32242575,87269.0,87268.0,0.00183511]
[1763965863798,2.37452824,87269.0,87268.0,0.00183511]
[1763965864001,2.74664919,87269.0,87268.0,0.00183511]
[1763965864195,2.49776885,87269.0,87268.0,0.00183511]
[1763965864430,1.96723,87260.0,87222.0,0.01205]
[1763965864599,0.01,87223.0,87222.0,0.00011767]
[1763965864939,0.03,87223.0,87222.0,0.00011767]
[1763965865623,0.03,87223.0,87200.0,0.0002]
[1763965865624,0.22930257,87221.0,87200.0,0.0002]
[1763965865828,2.13838374,87211.0,87200.0,0.0002]
[1763965866055,2.14994249,87201.0,87200.0,0.0002]
[1763965866253,2.38269939,87201.0,87200.0,0.0002]
[1763965866454,0.01146841,87196.0,87180.0,0.0002]
[1763965866635,2.35174249,87191.0,87180.0,0.0002]
[1763965866836,0.05210249,87190.0,87180.0,0.0002]
[1763965867039,0.323,87175.0,87170.0,0.0002]
[1763965867236,0.37510249,87170.0,87163.0,0.00589259]
[1763965867458,2.35154249,87164.0,87163.0,0.00589259]
[1763965867667,2.37268939,87164.0,87163.0,0.00589259]
[1763965867867,2.37268939,87164.0,87140.0,0.0002]
[1763965867868,0.01147381,87155.0,87140.0,0.0002]
[1763965868023,0.323,87138.0,87130.0,0.0002]
[1763965868233,0.323,87138.0,87130.0,0.0002898]
[1763965868234,2.29023,87131.0,87130.0,0.0002898]
[1763965868466,0.323,87131.0,87130.0,0.0002898]
[1763965868692,0.33201,87131.0,87130.0,0.0002898]
[1763965868834,2.30825,87131.0,87130.0,0.0002898]
[1763965869065,2.32920532,87131.0,87130.0,0.0002898]
[1763965869243,2.3291567,87131.0,87130.0,0.0002898]
[1763965869439,2.34236191,87131.0,87130.0,0.0002898]
[1763965869669,0.01147802,87123.0,87120.0,0.0002]
[1763965869910,0.01147802,87123.0,87061.0,0.10905125]
[1763965869911,0.05210249,87118.0,87082.0,0.01205]
[1763965870115,0.00901,87088.0,87087.0,2.96119036]
[1763965870315,1.96723,87109.0,87087.0,2.96119036]
[1763965870468,0.86812152,87100.0,87087.0,2.96687883]
[1763965870850,0.86812152,87100.0,87087.0,2.96119036]
[1763965871366,0.10905125,87096.0,87087.0,2.96119036]
[1763965872138,0.323,87095.0,87087.0,2.96219036]
[1763965872674,0.00901,87088.0,87087.0,2.96119036]
[1763965873296,0.01802,87088.0,87087.0,2.96119036]
[1763965873493,2.36035249,87088.0,87087.0,2.26219036]
[1763965873695,2.40996215,87088.0,87087.0,1.57315036]
[1763965874814,2.40996215,87088.0,87087.0,1.57215036]
[1763965875180,2.40996215,87088.0,87087.0,1.57315036]
[1763965875378,2.39489784,87088.0,87087.0,1.57215036]
[1763965875581,2.33478535,87088.0,87087.0,1.57215036]
[1763965875780,2.30124,87088.0,87087.0,1.57215036]
[1763965876005,2.30024,87088.0,87087.0,1.57215036]
[1763965876209,2.30925,87088.0,87087.0,1.57215036]
[1763965876409,2.31025,87088.0,87087.0,1.57215036]
[1763965876614,2.30925,87088.0,87087.0,1.57215036]
[1763965877514,2.30825,87088.0,87087.0,1.57215036]
[1763965878088,2.42347131,87088.0,87087.0,1.57215036]
[1763965878258,2.52518346,87088.0,87087.0,1.57215036]
[1763965878429,2.36035249,87088.0,87087.0,1.57215036]
[1763965878632,2.29924,87088.0,87087.0,1.57215036]
[1763965878951,1.96723,87096.0,87087.0,1.57215036]
[1763965879128,1.96723,87098.0,87087.0,1.57215036]
[1763965879309,0.14358901,87099.0,87087.0,1.57215036]
[1763965879310,0.001,87088.0,87087.0,1.57215036]
[1763965879511,2.29223,87088.0,87087.0,1.57215036]
[1763965879715,0.324,87088.0,87087.0,1.57215036]
[1763965879917,0.001,87088.0,87087.0,1.61327036]
[1763965880669,0.323,87116.0,87087.0,1.61327036]
[1763965880871,0.323,87112.0,87094.0,0.10905125]
[1763965881076,0.00901,87124.0,87111.0,0.0287]
[1763965881230,1.96723,87123.0,87112.0,0.01665]
[1763965881449,1.19112152,87122.0,87102.0,0.01205]
[1763965881646,0.86812152,87112.0,87102.0,0.01205]
[1763965881843,0.01802,87124.0,87102.0,0.01205]
[1763965881844,0.86812152,87120.0,87102.0,0.01205]
[1763965882044,0.10905125,87129.0,87102.0,0.01205]
[1763965882045,1.96723,87129.0,87110.0,0.10905125]
[1763965882245,1.96723,87129.0,87119.0,0.01665]
[1763965882737,1.96723,87135.0,87120.0,0.02447]
[1763965883282,1.96723,87135.0,87110.0,0.10905125]
[1763965883283,1.96723,87141.0,87111.0,0.05210249]
[1763965883440,0.323,87138.0,87120.0,0.00010781]
[1763965883623,0.86812152,87130.0,87120.0,0.00010781]
[1763965883827,0.02449,87121.0,87120.0,0.00010781]
[1763965884283,0.00816,87121.0,87120.0,0.00010781]
[1763965885559,0.04816,87121.0,87120.0,0.00110781]
[1763965885925,0.00816,87121.0,87120.0,0.00210781]
[1763965886795,0.02449,87121.0,87120.0,0.00110781]
[1763965886956,0.02449,87121.0,87120.0,0.00210781]
[1763965887160,0.02449,87121.0,87120.0,0.00675739]